Workbook

Sheet Título

Sheet Calculadores
A1: Nos calculadores, preencha as células a verde e, depois, carregue no botão se houver! Se tiver dificuldades ler a folha "Título"! | AB1: Ângulo da placa com a vertical (º)
A2: O resultado aparece nas células a vermelho. Informação ou o mesmo cálculo, mas com outras unidades, pode aparecer em células a roxo. | AA2: Preencher tb. ====>
A3: Se o botão for necessário, ele aparecerá sempre à esquerda! | B3: Não se esqueça de que as macros têm de estar ativadas! | D3: Zona para rascunho | G3: Zona para rascunho
A4: Ir para o calculador (clicar no link!):
A5: Ordem alfabética | B5: Símbolos
A6: Ângulo zenital do sol | B6: y
A7: Azimute do sol | B7: Az
A8: Calor latente de vaporização da água | B8: l
A9: Coeficientes de difusão molecular | B9: DM, DH, DV, DC
A10: Constante Psicrométrica | B10: g
A11: Declinação do sol | B11: d
A12: Densidade do ar | B12: ra
A13: Equação do tempo | B13: ET
A14: Fator de correção (Cf)para a evapotranspiração potencial não-ajustada (ETp'), segundo o método de Thornthwaite. | B14: Cf
A15: Hora do nascer/pôr do sol/fotoperíodo | B15: Sr, Ss, Dl
A16: Humidade absoluta | B16: χ
A17: Humidade específica | B17: q
A18: Convecção forçada - Cálculo do número de Nusselt (ar) | B18: Nu
A19: Convecção livre - Cálculo do número de Nusselt (ar) | B19: Nu
A20: Ponto de orvalho | B20: To
A21: Pressão atmosférica | B21: p
A22: Radiação diária no topo da atmosfera (horizontal) | B22: So
A23: Radiação emitida pelo corpo negro | B23: Ebk
A24: Razão de mistura | B24: r
A25: Taxa de variação de es com T | B25: D
A26: Temperatura virtual | B26: Tv
A27: Temperatura do termómetro molhado (2 versões) | B27: Tm
A28: Tensão de saturação do vapor de água | B28: es
A29: Tensão real de vapor de água (Eq. Psicrométrica) | B29: ea
A31: 1) Calculador para o fator de correção (Cf) que afeta a evapotranspiração potencial não-ajustada (ETp') para que fique ajustada (ETp), segundo o método de Thornthwaite.
C32: Voltar ao Índice --->
A34: Latitude do local (e.g., 38,7) | B34: Janeiro | C34: Fevereiro | D34: Março | E34: Abril | F34: Maio | G34: Junho | H34: Julho | I34: Agosto | J34: Setembro | K34: Outubro | L34: Novembro | M34: Dezembro
A35: 38 | B35: 25.33244104 | C35: 25.00791045 | D35: 30.72013773 | E35: 32.79917689 | F35: 36.58336457 | G35: 36.76447956 | H35: 37.41034659 | I35: 35.14603401 | J35: 31.10966713 | K35: 28.98208839 | L35: 25.32235985 | M35: 24.64247343
A41: 2) Calculador da declinação do sol no dia do ano (DOY) indicado. Pode-se entrar com frações do dia. (e. g., 21.5 é o meio dia de 22 Jan).
A42: Localização: | C42: Voltar ao Índice --->
A43: DOY: | B43: 100
A45: Declinação: | B45: =calcSolarDeclination(B43) -> 0.132740669 | C45: rad | D45: = | E45: =B45*180/PI() -> 7.605480103 | F45: º
A51: 3) Equação do tempo. Calcula a diferença entre o o tempo solar verdadeiro e o tempo médio solar.
B52: Pode-se entrar com frações do dia. (e. g., 21.5 é o meio dia de 22 Jan).
A53: Localização: | C53: Voltar ao Índice --->
A54: DOY: | B54: 100
A56: Equação do tempo: | B56: =calcEqOfTime(B54) -> -0.02706761317 | C56: h | D56: = | E56: =B56*60 -> -1.62405679 | F56: min
A61: 4) Calculador: Hora do nascer/pôr do sol (geométrico, aparente, crepúsculo)/fotoperíodo (geométrico, aparente, crepúsculo).
A65: Localização: | B65: Observatório Astronómico de Lisboa
A66: Nascer/pôr do sol/fotoperíodo? | B66: Nascer do sol | C66: Voltar ao Índice --->
A67: Geométrico/aparente/crepúsculo civil? | B67: Geométrico | C67: Mais informação: https://www.esrl.noaa.gov/gmd/grad/solcalc/glossary.html
A68: DOY: | B68: 282
A69: Latitude (e.g., 38,7) | B69: 38.710402 | C69: º
A70: Longitude (e.g., -9,1) | B70: -9.186375 | C70: º | D70: Longitude Meridiano Padrão | E70: 0 | F70: º
A71: Nascer do Sol | B71: 6.316648019 | C71: horas (hora solar!) | D71: = | E71: 6.713650134 | F71: h (UTC) | G71: (Hora do próprio dia!)
A74: 5) Calculador do ângulo zenital do sol
A78: Localização: | C78: Voltar ao Índice --->
A79: DOY: | B79: 100
A80: Latitude (e.g., 38,7) | B80: 38.7 | C80: º
A81: Hora solar | B81: 16 | C81: h (hora solar!)
A82: Ângulo zenital | B82: 1.082033365 | C82: rad | D82: = | E82: =B82*180/PI() -> 61.99594511 | F82: º
A87: 6) Calculador do azimute do sol | C87: Voltar ao Índice --->
A91: Localização:
A92: DOY: | B92: 100
A93: Latitude (e.g., 38,7) | B93: 38.7 | C93: º
A94: Hora solar | B94: 12 | C94: h (hora solar!)
A95: Azimute do sol | B95: 0 | C95: rad | D95: = | E95: =B95*180/PI() -> 0 | F95: º
A97: 7) Calculadores de Grandezas de Humidade do Ar | C97: Voltar ao Índice --->
A98: Atenção: Nestes calculadores, preencher sempre as células a começar da esquerda para a direita!
A99: Pressão atmosférica (p, Pa) | B99: Altitude (m)
A100: =101325*((293-0.0065*B100)/293)^5.25 -> 79843.81323 | B100: 2000
A102: Tensão de saturação do vapor de água (es, Pa) | B102: Temperatura (T, ºC) | C102: Voltar ao Índice --->
A103: =calcSatVapPres(B103)*1000 -> 2337.10045 | B103: 20
A105: Taxa de variação de es com T (D, Pa/ºC) | B105: Temperatura (ºC) | C105: Voltar ao Índice --->
A106: =calcSlope(B106)*1000 -> 144.5 | B106: 20
A108: Humidade absoluta (χ, g m-3) | B108: Temperatura (ºC) | C108: Tensão de vapor (e, Pa) | D108: Voltar ao Índice ---> | E108: Informação:
A109: =2.165*C109/(273.15+B109) -> 14.77059526 | B109: 20 | C109: 2000 | E109: es= | F109: =calcSatVapPres(B109)*1000 -> 2337.10045 | G109: Pa
A111: Humidade específica (q, adimensional) | B111: Tensão de vapor (e, Pa) | C111: Pressão atmosférica (P, Pa) | D111: Voltar ao Índice --->
A112: =0.622*B112/((C112-B112)+0.622*B112) -> 0.01237269255 | B112: 2000 | C112: 101300
A114: Razão de mistura (r, adimensional) | B114: Tensão de vapor (e, Pa) | C114: Pressão atmosférica (P, Pa) | D114: Voltar ao Índice --->
A115: =0.622*B115/(C115-B115) -> 0.01252769386 | B115: 2000 | C115: 101300
A117: Temperatura do ponto de orvalho (To, ºC) | B117: Tensão de vapor (e, Pa) | C117: Voltar ao Índice --->
A118: =237.3*((LN(B118/610.8)/17.27)/(1-(LN(B118/610.8)/17.27))) -> 17.50010317 | B118: 2000
A120: Equação Psicrométrica
A121: Tensão real de vapor de água (ea, Pa) | B121: Temp. do ar (= temp. termóm.seco) | C121: Temp. termómetro molhado | D121: Altitude (m) | E121: Voltar ao Índice --->
A122: =IF(B122<C122,"Erro! T.ar<T. molhado",calcEqPsicrom(B122,C122,D122)*1000) -> 2037.768589 | B122: 25 | C122: 20 | D122: 1000
A124: Temperatura virtual (Tv, ºC) | B124: Temperatura (ºC) | C124: Tensão de vapor (e, Pa) | D124: Pressão atmosférica (P, Pa) | E124: Voltar ao Índice ---> | F124: Informação:
A125: =(273.15+B125)/(1-(1-0.622)*C125/D125)-273.15 -> 21.09798359 | B125: 20 | C125: 1000 | D125: 101300 | F125: es= | G125: =calcSatVapPres(B125)*1000 -> 2337.10045 | H125: Pa
A127: Densidade do ar (r, kg m-3) | B127: Temperatura (ºC) | C127: Tensão de vapor (e, Pa) | D127: Pressão atmosférica (P, Pa) | E127: Voltar ao Índice ---> | F127: Informação:
A128: =(C128*0.018+(D128-C128)*0.02897)/(8.3145*(273.15+B128)) -> 1.199514314 | B128: 20 | C128: 1000 | D128: 101300 | F128: es= | G128: =calcSatVapPres(B128)*1000 -> 2337.10045 | H128: Pa
A130: 8) Outras propriedades do ar e água
A132: Calor latente de vaporização da água (l, J kg-1) | B132: Temperatura (ºC) | C132: Voltar ao Índice --->
A133: =calcLatHeatH2O(B133)*1000 -> 2453760 | B133: 20
A135: Constante Psicrométrica (g, Pa ºC-1) | B135: Temperatura (ºC) | C135: Altitude (m) | D135: Voltar ao Índice --->
A136: =calcPsycConst3(B136,C136)*1000 -> 64.84275275 | B136: 30 | C136: 400
A138: 9) Radiação emitida pelo corpo negro a determinada temperatura | C138: Voltar ao Índice --->
A139: Emitância do corpo negro (Ebk, W m-2) | B139: Temperatura (ºC) | C139: =calcPotentialSolar2(110,50/180*PI()) -> 36.50074849
A140: =0.0000000567*(273.15+B140)^4 -> 418.7382686 | B140: 20
A142: 10) Radiação diária no topo da atmosfera numa superfície plana e horizontal | C142: Voltar ao Índice --->
A143: Rad. diária no topo da atmosfera (So, MJ m-2 d-1) | B143: DOY: | C143: Latitude (e.g., 38,7) | E143: Equivalente de evaporação:
A144: =calcPotentialSolar2(B144,C144) -> 32.66567019 | B144: 110 | C144: 50 | D144: = | E144: =0.408*A144 -> 13.32759344 | F144: mm m-2 d-1
A149: 11) Coeficientes de difusão molecular (DM, DH, DV, DC)
A150: Escolha na célula abaixo (B151) o coeficiente! | C150: Voltar ao Índice --->
A151: DM, DH, DV ou DC ? | B151: DM
A152: Temperatura do ar (ºC) | B152: 30 | C152: ºC
A153: Pressão atmosférica (Pa) | B153: 101325 | C153: Pa
A154: =B151 -> DM | B154: =calcDifGasInAir(B151,B152,B153) -> 1.601291421e-05 | C154: m2 s-1
A156: 12) Cálculo da temperatura do termómetro molhado (Tm, ºC) usando altitude, temperatura do ar e do ponto de orvalho
C157: Voltar ao Índice --->
A158: Altitude (m): | B158: 680 | C158: m
A159: Temperatura do ar (ºC): | B159: 22.1 | C159: ºC
A160: Temperatura do ponto de orvalho (ºC): | B160: 14 | C160: ºC
A161: Temperatura do termómetro molhado (Tm, ºC) | B161: =calcTw(B158, B159, B160) -> 16.88141505
A164: 13) Cálculo da temperatura do termómetro molhado (Tm, ºC) usando a pressão atmosférica, temperatura do ar e do ponto de orvalho
C165: Voltar ao Índice --->
A166: Pressão atmosférica (Pa): | B166: 93670 | C166: Pa
A167: Temperatura do ar (ºC): | B167: 22.1 | C167: ºC
A168: Temperatura do ponto de orvalho (ºC): | B168: 14 | C168: ºC
A169: Temperatura do termómetro molhado (Tm, ºC): | B169: =calcTw2(B166/1000, B167, B168) -> 16.8843144
A172: 14) Convecção forçada - Cálculo do número de Nusselt para o ar
C174: --------->--------->-Info->--------->--------->
A176: Escolher configuração do objeto: | B176: Esfera | C176: Voltar ao Índice --->
A177: Pressão atmosférica (Pa): | B177: 101325
A178: Velocidade do ar (m/s): | B178: 1
A179: Dimensão característica (m): | B179: 0.01
A180: Temperatura da superfície (ºC): | B180: 25 | C180: --------->--------->-Info->--------->--------->
A181: Temperatura do ar (ºC): | B181: 23
A182: Número de Nusselt: | B182: 14.73564257 | C182: Convecção forçada!
A183: Note que algumas equações são mais precisas do que as utilizadas no meu livro: "Agrometeorologia: Aplicação da Meteorologia para Maximizar a Produção Agrícola". 2018. Agrobook. Assim, os valores de Nu podem ser até cerca de 20% diferentes em alguns casos.
A186: 14) Convecção livre (natural) - Cálculo do número de Nusselt para o ar
C188: Voltar ao Índice --->
A190: Escolher configuração do objeto: | B190: Placa plana horizontal 1
A191: Pressão atmosférica (Pa): | B191: 101325
A192: Velocidade do ar (m/s): | B192: 0.2 | C192: --------->--------->-Info->--------->--------->
A193: Dimensão característica (m): | B193: 0.2
A194: Temperatura da superfície (ºC): | B194: 25
A195: Temperatura do ar (ºC): | B195: 23
A196: Humidade relativa do ar (0 - 1) | B196: 0.8 | C196: --------->--------->-Info->--------->--------->
A197: Superfície molhada? | B197: N
A198: Número de Nusselt: | B198: 19.04127041 | C198: Convecção mista! O Nu para a c. forçada e livre deve ser combinados. Ver nota a seguir!
A199: Note que algumas equações são mais precisas do que as utilizadas no meu livro: "Agrometeorologia: Aplicação da Meteorologia para Maximizar a Produção Agrícola". 2018. Agrobook. Assim, os valores de Nu podem ser até cerca de 20% diferentes em alguns casos.
A203: Nota:
A204: O nº de Nusselt combinado (Nucomb) deve ser estimado para cada caso particular, usando os valores calculados para a c. forçada e livre "puras".
A205: A forma da equação será:
A207: em que n costuma ser entre 3 e 4 para a maioria das configurações, e o sinal ± refere-se ao fato de os efeitos de ambos os modos de convecção
A208: se potenciarem ou contrariarem.

Sheet Tabela1A_Es_T
A1: Tabela 1A. Tensão de saturação do vapor de água, es [Pa] em função da temperatura [ºC]
A2: ºC | B2: 0 | C2: 0.1 | D2: 0.2 | E2: 0.3 | F2: 0.4 | G2: 0.5 | H2: 0.6 | I2: 0.7 | J2: 0.8 | K2: 0.9
A3: 0 | B3: =calcSatVapPres($A3+B$2)*1000 -> 610.767402 | C3: =calcSatVapPres($A3+C$2)*1000 -> 615.2182247 | D3: 619.6977858 | E3: 624.2062453 | F3: 628.7437642 | G3: 633.3105041 | H3: 637.9066273 | I3: 642.5322969 | J3: 647.1876767 | K3: 651.8729313
A4: 1 | B4: 656.588226 | C4: 661.3337267 | D4: 666.1096005 | E4: 670.9160148 | F4: 675.7531379 | G4: 680.621139 | H4: 685.5201878 | I4: 690.4504551 | J4: 695.4121121 | K4: 700.405331
A5: 2 | B5: 705.4302848 | C5: 710.4871471 | D5: 715.5760924 | E5: 720.697296 | F5: 725.8509339 | G5: 731.0371828 | H5: 736.2562205 | I5: 741.5082254 | J5: 746.7933765 | K5: 752.1118539
A6: 3 | B6: 757.4638383 | C6: 762.8495115 | D6: 768.2690556 | E6: 773.722654 | F6: 779.2104906 | G6: 784.7327502 | H6: 790.2896185 | I6: 795.8812819 | J6: 801.5079276 | K6: 807.1697437
A7: 4 | B7: 812.8669192 | C7: 818.5996436 | D7: 824.3681077 | E7: 830.1725027 | F7: 836.013021 | G7: 841.8898555 | H7: 847.8032001 | I7: 853.7532497 | J7: 859.7401997 | K7: 865.7642465
A8: 5 | B8: 871.8255876 | C8: 877.924421 | D8: 884.0609456 | E8: 890.2353614 | F8: 896.447869 | G8: 902.69867 | H8: 908.9879668 | I8: 915.3159627 | J8: 921.682862 | K8: 928.0888696
A9: 6 | B9: 934.5341915 | C9: 941.0190344 | D9: 947.5436061 | E9: 954.1081152 | F9: 960.712771 | G9: 967.3577839 | H9: 974.0433652 | I9: 980.7697269 | J9: 987.5370822 | K9: 994.345645
A10: 7 | B10: 1001.19563 | C10: 1008.087253 | D10: 1015.020731 | E10: 1021.996281 | F10: 1029.014122 | G10: 1036.074473 | H10: 1043.177554 | I10: 1050.323587 | J10: 1057.512794 | K10: 1064.745397
A11: 8 | B11: 1072.021622 | C11: 1079.341693 | D11: 1086.705835 | E11: 1094.114277 | F11: 1101.567244 | G11: 1109.064967 | H11: 1116.607674 | I11: 1124.195597 | J11: 1131.828967 | K11: 1139.508017
A12: 9 | B12: 1147.23298 | C12: 1155.00409 | D12: 1162.821583 | E12: 1170.685695 | F12: 1178.596664 | G12: 1186.554728 | H12: 1194.560127 | I12: 1202.6131 | J12: 1210.713889 | K12: 1218.862735
A13: 10 | B13: 1227.059884 | C13: 1235.305578 | D13: 1243.600062 | E13: 1251.943584 | F13: 1260.33639 | G13: 1268.778729 | H13: 1277.270849 | I13: 1285.813001 | J13: 1294.405437 | K13: 1303.048408
A14: 11 | B14: 1311.742167 | C14: 1320.48697 | D14: 1329.283071 | E14: 1338.130727 | F14: 1347.030195 | G14: 1355.981734 | H14: 1364.985602 | I14: 1374.042061 | J14: 1383.151372 | K14: 1392.313797
A15: 12 | B15: 1401.529601 | C15: 1410.799047 | D15: 1420.122402 | E15: 1429.499932 | F15: 1438.931906 | G15: 1448.418591 | H15: 1457.960258 | I15: 1467.557178 | J15: 1477.209624 | K15: 1486.917867
A16: 13 | B16: 1496.682183 | C16: 1506.502847 | D16: 1516.380134 | E16: 1526.314324 | F16: 1536.305694 | G16: 1546.354523 | H16: 1556.461093 | I16: 1566.625686 | J16: 1576.848584 | K16: 1587.130072
A17: 14 | B17: 1597.470435 | C17: 1607.869958 | D17: 1618.32893 | E17: 1628.847638 | F17: 1639.426373 | G17: 1650.065425 | H17: 1660.765087 | I17: 1671.52565 | J17: 1682.34741 | K17: 1693.230661
A18: 15 | B18: 1704.1757 | C18: 1715.182824 | D18: 1726.252332 | E18: 1737.384524 | F18: 1748.579702 | G18: 1759.838166 | H18: 1771.16022 | I18: 1782.54617 | J18: 1793.996319 | K18: 1805.510976
A19: 16 | B19: =calcSatVapPres($A19+B$2)*1000 -> 1817.090448 | C19: 1828.735043 | D19: 1840.445074 | E19: 1852.22085 | F19: 1864.062685 | G19: 1875.970892 | H19: 1887.945787 | I19: 1899.987685 | J19: 1912.096905 | K19: 1924.273764
A20: 17 | B20: 1936.518582 | C20: 1948.831681 | D20: 1961.213382 | E20: 1973.66401 | F20: 1986.183888 | G20: 1998.773343 | H20: 2011.432701 | I20: 2024.162291 | J20: 2036.962443 | K20: 2049.833486
A21: 18 | B21: 2062.775754 | C21: 2075.789579 | D21: 2088.875296 | E21: 2102.03324 | F21: 2115.263748 | G21: 2128.567159 | H21: 2141.943812 | I21: 2155.394048 | J21: 2168.918208 | K21: 2182.516636
A22: 19 | B22: 2196.189677 | C22: 2209.937675 | D22: 2223.760979 | E22: 2237.659935 | F22: 2251.634895 | G22: 2265.686208 | H22: 2279.814228 | I22: 2294.019306 | J22: 2308.301798 | K22: 2322.662061
A23: 20 | B23: 2337.10045 | C23: 2351.617326 | D23: 2366.213047 | E23: 2380.887975 | F23: 2395.642473 | G23: 2410.476904 | H23: 2425.391633 | I23: 2440.387027 | J23: 2455.463455 | K23: 2470.621283
A24: 21 | B24: 2485.860885 | C24: 2501.18263 | D24: 2516.586892 | E24: 2532.074047 | F24: 2547.644468 | G24: 2563.298535 | H24: 2579.036624 | I24: 2594.859117 | J24: 2610.766393 | K24: 2626.758837
A25: 22 | B25: 2642.836831 | C25: 2659.000762 | D25: 2675.251015 | E25: 2691.587979 | F25: 2708.012043 | G25: 2724.523598 | H25: 2741.123037 | I25: 2757.810753 | J25: 2774.58714 | K25: 2791.452596
A26: 23 | B26: 2808.407517 | C26: 2825.452304 | D26: 2842.587357 | E26: 2859.813078 | F26: 2877.129869 | G26: 2894.538137 | H26: 2912.038287 | I26: 2929.630727 | J26: 2947.315866 | K26: 2965.094115
A27: 24 | B27: 2982.965885 | C27: 3000.931591 | D27: 3018.991646 | E27: 3037.146467 | F27: 3055.396471 | G27: 3073.742079 | H27: 3092.183711 | I27: 3110.721788 | J27: 3129.356734 | K27: 3148.088975
A28: 25 | B28: 3166.918936 | C28: 3185.847046 | D28: 3204.873734 | E28: 3223.999432 | F28: 3243.224571 | G28: 3262.549585 | H28: 3281.97491 | I28: 3301.500982 | J28: 3321.128241 | K28: 3340.857125
A29: 26 | B29: 3360.688077 | C29: 3380.621538 | D29: 3400.657954 | E29: 3420.797771 | F29: 3441.041435 | G29: 3461.389396 | H29: 3481.842104 | I29: 3502.400012 | J29: 3523.063572 | K29: 3543.83324
A30: 27 | B30: 3564.709473 | C30: 3585.692728 | D30: 3606.783466 | E30: 3627.982147 | F30: 3649.289234 | G30: 3670.705192 | H30: 3692.230487 | I30: 3713.865586 | J30: 3735.610958 | K30: 3757.467074
A31: 28 | B31: 3779.434406 | C31: 3801.513428 | D31: 3823.704616 | E31: 3846.008445 | F31: 3868.425396 | G31: 3890.955947 | H31: 3913.600581 | I31: 3936.359781 | J31: 3959.234032 | K31: 3982.223821
A32: 29 | B32: 4005.329635 | C32: 4028.551965 | D32: 4051.891302 | E32: 4075.348139 | F32: 4098.922971 | G32: 4122.616294 | H32: 4146.428606 | I32: 4170.360406 | J32: 4194.412196 | K32: 4218.584479
A33: 30 | B33: 4242.877759 | C33: 4267.292543 | D33: 4291.829338 | E33: 4316.488653 | F33: 4341.271001 | G33: 4366.176893 | H33: 4391.206844 | I33: 4416.361371 | J33: 4441.640992 | K33: 4467.046225
A34: 31 | B34: 4492.577592 | C34: 4518.235616 | D34: 4544.020823 | E34: 4569.933737 | F34: 4595.974887 | G34: =calcSatVapPres($A34+G$2)*1000 -> 4622.144803 | H34: 4648.444016 | I34: 4674.87306 | J34: 4701.43247 | K34: 4728.122781
A35: 32 | B35: 4754.944532 | C35: 4781.898264 | D35: 4808.984519 | E35: 4836.203839 | F35: 4863.55677 | G35: 4891.043859 | H35: 4918.665655 | I35: 4946.422709 | J35: 4974.315572 | K35: 5002.344799
A36: 33 | B36: 5030.510946 | C36: 5058.81457 | D36: 5087.25623 | E36: 5115.836488 | F36: 5144.555907 | G36: 5173.415052 | H36: 5202.414488 | I36: 5231.554785 | J36: 5260.836511 | K36: 5290.26024
A37: 34 | B37: 5319.826545 | C37: 5349.536002 | D37: 5379.389187 | E37: 5409.38668 | F37: 5439.529062 | G37: 5469.816915 | H37: 5500.250825 | I37: 5530.831377 | J37: 5561.55916 | K37: 5592.434765
A38: 35 | B38: 5623.458782 | C38: 5654.631806 | D38: 5685.954433 | E38: 5717.42726 | F38: 5749.050887 | G38: 5780.825914 | H38: 5812.752945 | I38: 5844.832585 | J38: 5877.06544 | K38: 5909.45212
A39: 36 | B39: 5941.993235 | C39: 5974.689398 | D39: 6007.541222 | E39: 6040.549325 | F39: 6073.714324 | G39: 6107.03684 | H39: 6140.517495 | I39: 6174.156913 | J39: 6207.955718 | K39: 6241.91454
A40: 37 | B40: 6276.034008 | C40: 6310.314754 | D40: 6344.75741 | E40: 6379.362614 | F40: 6414.131001 | G40: 6449.063212 | H40: 6484.159887 | I40: 6519.421671 | J40: 6554.849208 | K40: 6590.443145
A41: 38 | B41: 6626.204132 | C41: 6662.13282 | D41: 6698.229862 | E41: 6734.495913 | F41: 6770.93163 | G41: 6807.537673 | H41: 6844.314701 | I41: 6881.263379 | J41: 6918.384371 | K41: 6955.678345
A42: 39 | B42: 6993.145969 | C42: 7030.787915 | D42: 7068.604855 | E42: 7106.597465 | F42: 7144.766422 | G42: 7183.112404 | H42: 7221.636094 | I42: 7260.338175 | J42: 7299.219331 | K42: 7338.28025
A43: 40 | B43: 7377.521622 | C43: 7416.944137 | D43: 7456.548489 | E43: 7496.335375 | F43: 7536.30549 | G43: 7576.459536 | H43: 7616.798214 | I43: 7657.322227 | J43: 7698.032281 | K43: 7738.929085
A44: 41 | B44: 7780.013349 | C44: 7821.285784 | D44: 7862.747106 | E44: 7904.39803 | F44: 7946.239274 | G44: 7988.271561 | H44: 8030.495611 | I44: 8072.91215 | J44: 8115.521906 | K44: 8158.325607
A45: 42 | B45: 8201.323984 | C45: 8244.51777 | D45: 8287.907702 | E45: 8331.494517 | F45: 8375.278954 | G45: 8419.261756 | H45: 8463.443667 | I45: 8507.825433 | J45: 8552.407802 | K45: 8597.191525
A46: 43 | B46: 8642.177355 | C46: 8687.366048 | D46: 8732.758359 | E46: 8778.355048 | F46: 8824.156878 | G46: 8870.164611 | H46: 8916.379014 | I46: 8962.800855 | J46: 9009.430904 | K46: 9056.269934
A47: 44 | B47: 9103.318719 | C47: 9150.578037 | D47: 9198.048667 | E47: 9245.731391 | F47: 9293.626991 | G47: 9341.736255 | H47: 9390.05997 | I47: 9438.598927 | J47: 9487.353918 | K47: 9536.325739
A48: 45 | B48: 9585.515186 | C48: 9634.92306 | D48: 9684.550162 | E48: 9734.397296 | F48: 9784.465269 | G48: 9834.754889 | H48: 9885.266967 | I48: 9936.002317 | J48: 9986.961753 | K48: 10038.14609
A49: 46 | B49: 10089.55616 | C49: 10141.19277 | D49: 10193.05676 | E49: 10245.14894 | F49: 10297.47016 | G49: 10350.02123 | H49: 10402.803 | I49: 10455.8163 | J49: 10509.06196 | K49: 10562.54084
A50: 47 | B50: 10616.25378 | C50: 10670.20161 | D50: 10724.38519 | E50: 10778.80537 | F50: 10833.46301 | G50: 10888.35895 | H50: 10943.49405 | I50: 10998.86918 | J50: 11054.4852 | K50: 11110.34297
A51: 48 | B51: 11166.44336 | C51: 11222.78723 | D51: 11279.37547 | E51: 11336.20895 | F51: 11393.28853 | G51: 11450.61511 | H51: 11508.18957 | I51: 11566.01278 | J51: 11624.08563 | K51: 11682.40902
A52: 49 | B52: 11740.98384 | C52: 11799.81097 | D52: 11858.89132 | E52: 11918.22578 | F52: 11977.81526 | G52: 12037.66066 | H52: 12097.76288 | I52: 12158.12284 | J52: 12218.74145 | K52: 12279.61961
A53: 50 | B53: 12340.75825 | C53: 12402.15828 | D53: 12463.82063 | E53: 12525.74622 | F53: 12587.93597 | G53: 12650.39082 | H53: 12713.1117 | I53: 12776.09953 | J53: 12839.35526 | K53: 12902.87982

Sheet Tabela2A_Slope_Lamb_PsicConst
A1: Tabela 2A. Declive da curva da tensão de saturação verso temperatura (D), calor latente de vaporização da água (l) e constante psicrométrica à pressão atmos férica normal (101,3 kPa)
A3: T | B3: D | C3: l | D3: g | F3: T | G3: D | H3: l | I3: g
A4: [ºC] | B4: [Pa ºC-1] | C4: [J g-1] | D4: [Pa ºC-1] | F4: [ºC] | G4: [Pa ºC-1] | H4: [J g-1] | I4: [Pa ºC-1]
A5: 0 | B5: =calcSlope(A5)*1000 -> 45.3 | C5: =calcLatHeatH2O(A5) -> 2500.8 | D5: =1.63*101300/C5 -> 66.02647153 | F5: 26 | G5: =calcSlope(F5)*1000 -> 198.82688 | H5: =calcLatHeatH2O(F5) -> 2439.46704 | I5: =1.63*101300/H5 -> 67.68650582
A6: 1 | B6: =calcSlope(A6)*1000 -> 48.32713 | C6: =calcLatHeatH2O(A6) -> 2498.44154 | D6: =1.63*101300/C6 -> 66.0887987 | F6: 27 | G6: =calcSlope(F6)*1000 -> 209.40519 | H6: =calcLatHeatH2O(F6) -> 2437.06542 | I6: =1.63*101300/H6 -> 67.75320787
A7: 2 | B7: 51.47744 | C7: 2496.08592 | D7: 66.15116839 | F7: 28 | G7: 220.45456 | H7: 2434.65728 | I7: 67.82022314
A8: 3 | B8: 54.76431 | C8: 2493.73278 | D8: 66.21359005 | F8: 29 | G8: 231.98837 | H8: 2432.24226 | I8: 67.88756314
A9: 4 | B9: 58.20112 | C9: 2491.38176 | D9: 66.27607324 | F9: 30 | G9: 244.02 | H9: 2429.82 | I9: 67.95523948
A10: 5 | B10: 61.80125 | C10: 2489.0325 | D10: 66.33862756 | F10: 31 | G10: 256.56283 | H10: 2427.39014 | I10: 68.02326387
A11: 6 | B11: 65.57808 | C11: 2486.68464 | D11: 66.40126269 | F11: 32 | G11: 269.63024 | H11: 2424.95232 | I11: =1.63*101300/H11 -> 68.09164809
A12: 7 | B12: 69.54499 | C12: 2484.33782 | D12: 66.46398838 | F12: 33 | G12: 283.23561 | H12: 2422.50618 | I12: 68.16040403
A13: 8 | B13: 73.71536 | C13: 2481.99168 | D13: 66.52681447 | F13: 34 | G13: 297.39232 | H13: 2420.05136 | I13: 68.22954369
A14: 9 | B14: 78.10257 | C14: 2479.64586 | D14: 66.58975084 | F14: 35 | G14: 312.11375 | H14: 2417.5875 | I14: 68.29907914
A15: 10 | B15: 82.72 | C15: 2477.3 | D15: 66.65280749 | F15: 36 | G15: 327.41328 | H15: 2415.11424 | I15: 68.36902258
A16: 11 | B16: 87.58103 | C16: 2474.95374 | D16: 66.71599446 | F16: 37 | G16: 343.30429 | H16: 2412.63122 | I16: 68.43938627
A17: 12 | B17: 92.69904 | C17: 2472.60672 | D17: 66.77932186 | F17: 38 | G17: 359.80016 | H17: 2410.13808 | I17: 68.51018262
A18: 13 | B18: 98.08741 | C18: 2470.25858 | D18: 66.84279991 | F18: 39 | G18: 376.91427 | H18: 2407.63446 | I18: 68.58142411
A19: 14 | B19: 103.75952 | C19: 2467.90896 | D19: 66.90643888 | F19: 40 | G19: 394.66 | H19: 2405.12 | I19: 68.65312334
A20: 15 | B20: 109.72875 | C20: 2465.5575 | D20: 66.97024912 | F20: 41 | G20: 413.05073 | H20: 2402.59434 | I20: 68.72529301
A21: 16 | B21: 116.00848 | C21: 2463.20384 | D21: 67.03424106 | F21: 42 | G21: 432.09984 | H21: 2400.05712 | I21: 68.79794594
A22: 17 | B22: 122.61209 | C22: 2460.84762 | D22: 67.09842522 | F22: 43 | G22: 451.82071 | H22: 2397.50798 | I22: 68.87109506
A23: 18 | B23: 129.55296 | C23: 2458.48848 | D23: 67.16281217 | F23: 44 | G23: 472.22672 | H23: 2394.94656 | I23: 68.94475341
A24: 19 | B24: 136.84447 | C24: 2456.12606 | D24: 67.22741259 | F24: 45 | G24: 493.33125 | H24: 2392.3725 | I24: 69.01893413
A25: 20 | B25: 144.5 | C25: 2453.76 | D25: 67.29223722 | F25: 46 | G25: 515.14768 | H25: 2389.78544 | I25: 69.09365052
A26: 21 | B26: 152.53293 | C26: 2451.38994 | D26: 67.3572969 | F26: 47 | G26: 537.68939 | H26: 2387.18502 | I26: 69.16891595
A27: 22 | B27: 160.95664 | C27: 2449.01552 | D27: 67.42260253 | F27: 48 | G27: 560.96976 | H27: 2384.57088 | I27: 69.24474394
A28: 23 | B28: 169.78451 | C28: 2446.63638 | D28: 67.48816512 | F28: 49 | G28: 585.00217 | H28: 2381.94266 | I28: 69.32114814
A29: 24 | B29: 179.02992 | C29: 2444.25216 | D29: 67.55399574 | F29: 50 | G29: 609.8 | H29: 2379.3 | I29: 69.39814231
A30: 25 | B30: 188.70625 | C30: =calcLatHeatH2O(A30) -> 2441.8625 | D30: 67.62010555 | F30: 51 | G30: 635.37663 | H30: =calcLatHeatH2O(F30) -> 2376.64254 | I30: 69.47574034
